Cogmind - Beta 9.3 @@@ ROGUE MODE // 2020.01.06 @ 19:33:15 Player: Joshua Result: Escaped! Performance ------------- Evolutions (9) 4500 Regions Visited (20) 4000 Robots Destroyed (153) 765 Value Destroyed (4403) 4403 Prototype IDs (67) 1340 Alien Tech Used (1) 200 Bonus (18366) 18366 TOTAL SCORE: 33574 Bonus ------- Devolution 7500 High Alert Combat Kills 160 Follower Combat Kills 106 Aligned with FarCom 300 Met Data Miner 300 Win 3000 Challenge Win 7000 Cogmind --------- Core Integrity 634/800 Matter 104/300 Energy 237/240 System Corruption 1% Temperature Cool (27) Movement Flying (29) Location To Epsilon Eridani Parts ------- > --- POWER (3) -------- Micro Fission Core Micro Fission Core > --- PROPULSION (2) --- Cooled Cesium-ion Thruster Cooled Cesium-ion Thruster > --- UTILITY (2) ------ Experimental Terrain Scan Processor Advanced ECM Suite > --- WEAPON (5) ------- Chainsword > --- INVENTORY (4) ---- Field Propulsion Drive Experimental Terrain Scanner Enhanced Quantum Rifle Peak State ------------ > --- POWER ------------ Heavy Ion Engine Nuclear Core Light Nuclear Core > --- PROPULSION ------- Advanced Treads Improved Flight Unit Improved VTOL Module Improved VTOL Module > --- UTILITY ---------- Improved Cooling System Large Storage Unit High-capacity Storage Unit High-capacity Storage Unit Hardened Medium Armor Plating > --- WEAPON ----------- Improved Assault Rifle Minigun Flak Gun Flak Gun Remote Datajack > --- INVENTORY -------- Light Deuterium Engine Improved Deuterium Engine Light Angular Momentum Engine Light Treads Light Treads Armored Treads Improved Carbon-fiber Leg Improved VTOL Module Cooled VTOL Module Advanced Sensor Array Advanced Signal Interpreter Long-range Terrain Scanner Improved ECM Suite Improved Propulsion Shielding Improved Utility Shielding Hardened Medium Armor Plating Hacking Suite System Backup Module PSU Rigger Cooled Particle Cannon Improved Assault Rifle Flak Gun Advanced Assault Cannon Missile Launcher Chainsword [Rating: 60] Favorites ----------- Power Light Nuclear Core Engine Heavy Ion Engine Power Core Light Nuclear Core Propulsion Light Treads Treads Light Treads Leg Aluminum Leg Wheel Compact Wheel Flight Unit Improved VTOL Module Utility High-capacity Storage Unit Device Advanced Heat Sink Storage High-capacity Storage Unit Processor Improved Targeting Computer Hackware Hacking Suite Protection Hardened Medium Armor Plating Weapon Flak Gun Energy Gun EM Pulse Gun Energy Cannon Particle Cannon Ballistic Gun Flak Gun Launcher Missile Launcher Special Weapon Remote Datajack Impact Weapon Hammer Slashing Weapon Chainsword Special Melee Weapon Datajack Build | -11 -10 -10 -10 -9 -8 -7 -7 -7 -7 -6 -6 -5 -5 -5 -4 -4 -4 -3 -2 -1 ------- Run | Scr Mat Min Exi Min Mat Fac Low Low Dat Pro Fac Fac Was Fac Fac Upp Upp Res Res Acc Slots Evolved -9 | . . . . . -2 -1 . . . . -1 -1 . . -1 . . -1 -1 -1 Power . | . . . . . . . . . . . . . . . . . . . . . Propulsion -2 | . . . . . . . . . . . . . . . -1 . . . -1 . Utility -7 | . . . . . -2 -1 . . . . -1 -1 . . . . . -1 . -1 Weapon . | . . . . . . . . . . . . . . . . . . . . . Parts Attached 239 | 11 20 . 2 11 55 32 12 12 2 22 24 3 . 17 1 4 . 3 2 6 Power 21 | 2 2 . . 1 6 3 . 1 . 1 3 . . 1 . 1 . . . . Engine 9 | 2 2 . . . 4 1 . . . . . . . . . . . . . . Core 12 | . . . . 1 2 2 . 1 . 1 3 . . 1 . 1 . . . . Reactor . | . . . . . . . . . . . . . . . . . . . . . Propulsion 39 | 5 2 . . 3 9 3 . 1 . . 8 . . 4 1 . . 2 . 1 Treads 16 | 2 1 . . 2 7 3 . 1 . . . . . . . . . . . . Leg 1 | 1 . . . . . . . . . . . . . . . . . . . . Wheel 6 | 2 1 . . 1 2 . . . . . . . . . . . . . . . Hover . | . . . . . . . . . . . . . . . . . . . . . Flight 16 | . . . . . . . . . . . 8 . . 4 1 . . 2 . 1 Utility 87 | 1 8 . 1 4 15 10 8 5 . 13 7 1 . 4 . 3 . 1 2 4 Device 49 | . 3 . . 2 6 6 7 5 . 12 1 . . 2 . 1 . . 2 2 Storage 12 | 1 2 . 1 1 6 1 . . . . . . . . . . . . . . Processor 5 | . . . . 1 1 1 . . . . . . . . . 1 . 1 . . Hackware 9 | . . . . . . 1 . . . . 3 1 . 2 . . . . . 2 Protection 12 | . 3 . . . 2 1 1 . . 1 3 . . . . 1 . . . . Artifact . | . . . . . . . . . . . . . . . . . . . . . Weapon 92 | 3 8 . 1 3 25 16 4 5 2 8 6 2 . 8 . . . . . 1 Energy Gun 14 | 3 2 . . . 8 . . . . . . . . . . . . . . 1 Energy Cannon 4 | . . . . 2 2 . . . . . . . . . . . . . . . Ballistic Gun 32 | . 5 . . 1 10 8 2 2 1 3 . . . . . . . . . . Ballistic Cannon . | . . . . . . . . . . . . . . . . . . . . . Launcher 8 | . . . . . . 3 . 2 . 3 . . . . . . . . . . Special Weapon 3 | . . . . . . 1 . . 1 . 1 . . . . . . . . . Impact Weapon 2 | . 1 . . . 1 . . . . . . . . . . . . . . . Slashing Weapon 28 | . . . . . 4 4 2 1 . 2 5 2 . 8 . . . . . . Piercing Weapon . | . . . . . . . . . . . . . . . . . . . . . Special Melee Weapon 1 | . . . 1 . . . . . . . . . . . . . . . . . Unidentified Prototypes 2 | . . . . . 1 . . . . 1 . . . . . . . . . . Parts Lost 29 | . 1 . . 12 8 5 . 2 . 1 . . . . . . . . . . Power 7 | . . . . 2 1 2 . 1 . 1 . . . . . . . . . . Propulsion 7 | . . . . 4 2 . . 1 . . . . . . . . . . . . Utility 3 | . . . . 2 1 . . . . . . . . . . . . . . . Weapon 12 | . 1 . . 4 4 3 . . . . . . . . . . . . . . Highest Loss Streak 12 | . 1 . . 12 3 1 . 2 . 1 . . . . . . . . . . Average Slot Usage (%) 90 | . 86 100 100 92 97 99 100 99 100 99 61 57 56 58 60 66 66 63 61 58 Engine 8 | . 14 15 15 9 9 14 11 7 5 5 . . . . . . . . . . Core 5 | . . . . 3 4 1 5 8 11 10 5 6 6 6 6 13 13 14 15 16 Treads 16 | . 10 10 10 9 20 23 23 22 23 22 2 . . . . . . . . . Wheel 1 | . 10 10 10 8 1 . . . . . . . . . . . . . . . Flight 4 | . . . . . . . . . . . 20 25 25 25 20 20 20 21 15 16 Device 5 | . 5 15 10 9 8 4 5 5 5 5 4 . . 3 6 6 6 7 7 5 Storage 13 | . 13 15 19 20 13 17 17 17 17 16 6 6 6 6 6 1 . . . . Processor 1 | . . . . . 5 1 . . . . . . . . . 6 6 6 7 8 Hackware 2 | . . . . . . 1 . . . . 8 12 12 13 13 6 6 7 7 2 Protection 4 | . 10 10 10 9 4 2 5 5 5 6 5 6 6 . . 5 6 . . . Energy Gun 2 | . 13 . . . 6 . . . . . . . . . . . . . . . Energy Cannon 1 | . . . . 1 4 . . . . . . . . . . . . . . . Ballistic Gun 16 | . 5 20 15 16 13 27 25 27 25 25 2 . . . . . . . . . Slashing Weapon 1 | . . . . . . . 3 1 . 2 . 1 . 2 6 6 6 7 7 8 Naked Turns . | . . . . . . . . . . . . . . . . . . . . . Heaviest Build 136 | 20 66 66 81 109 130 136 129 132 125 135 127 26 23 25 25 16 16 14 16 16 Greatest Support 88 | 26 40 40 32 48 88 87 85 85 82 82 82 24 24 26 25 19 19 24 24 20 Greatest Overweight (x) 6 | 1 2 2 2 6 5 1 1 1 1 1 1 1 . . 1 . . . . . Average Overweight (x) . | . 1 1 2 2 1 1 1 1 1 1 . . . . . . . . . . Largest Inventory Capacity 26 | 6 14 14 20 26 26 26 26 26 26 26 26 10 10 10 10 10 4 4 4 4 Average Capacity 20 | 5 11 14 19 23 22 26 26 26 26 26 11 10 10 10 10 4 4 4 4 4 Most Carried 26 | 3 14 14 18 20 26 26 26 26 26 26 26 10 10 10 10 9 4 4 4 4 Average Carried 19 | 1 9 14 17 18 21 25 26 25 26 25 11 9 10 9 10 4 4 3 3 3 Final Capacity 26 | 6 14 14 20 26 26 26 26 26 26 26 10 10 10 10 10 4 4 4 4 4 Final Carried 26 | 3 14 14 18 13 26 26 26 26 26 25 10 10 10 9 10 4 4 4 4 3 Class Distribution -------------------- 22% | Hauler-Skirmisher 19% | Hauler-Mutant 18% | Hauler-Tank 8% | Hacker-Sprinter 5% | Scavenger-Mutant 5% | Scavenger-Skirmisher 4% | Machinist-Scout 3% | Tank Dominant Class ---------------- Tank | -10/Materials Scavenger-Tank | -10/Mines Hauler-Mutant | -10/Exiles Hauler-Skirmisher | -9/Mines Hauler-Skirmisher | -8/Materials Hauler-Skirmisher | -7/Factory Hauler-Mutant | -7/Lower Caves Hauler-Tank | -7/Lower Caves Hauler-Mutant | -7/Data Miner Hauler-Tank | -6/Proximity Caves Scout | -6/Factory Hacker-Sprinter | -5/Factory Hacker-Sprinter | -5/Waste Hacker-Sprinter | -5/Factory Hacker-Mutant | -4/Factory Machinist-Sprinter | -4/Upper Caves Machinist-Sprinter | -4/Upper Caves Machinist-Scout | -3/Research Machinist-Scout | -2/Research Machinist-Scout | -1/Access Resources | -11 -10 -10 -10 -9 -8 -7 -7 -7 -7 -6 -6 -5 -5 -5 -4 -4 -4 -3 -2 -1 ----------- Run | Scr Mat Min Exi Min Mat Fac Low Low Dat Pro Fac Fac Was Fac Fac Upp Upp Res Res Acc Matter Collected 5682 | 290 468 52 . 105 1323 1648 370 275 . 622 312 . 83 90 . 44 . . . . Remotely 363 | . 311 52 . . . . . . . . . . . . . . . . . . Salvage Created 5313 | 89 565 78 . 118 2031 1642 150 308 . 177 155 . . . . . . . . . Parts 287 | 1 32 8 . 4 116 89 8 13 . 9 7 . . . . . . . . . Haulers Intercepted 5 | . . . . . 2 2 . . . . 1 . . . . . . . . . Recyclers Shooed 7 | . 2 . . . 1 4 . . . . . . . . . . . . . . Parts Field Recycled . | . . . . . . . . . . . . . . . . . . . . . Retrieved Matter . | . . . . . . . . . . . . . . . . . . . . . Parts Self-Destructed 26 | . . . . . . . 8 11 . 7 . . . . . . . . . . Prevented . | . . . . . . . . . . . . . . . . . . . . . Kills | -11 -10 -10 -10 -9 -8 -7 -7 -7 -7 -6 -6 -5 -5 -5 -4 -4 -4 -3 -2 -1 ------- Run | Scr Mat Min Exi Min Mat Fac Low Low Dat Pro Fac Fac Was Fac Fac Upp Upp Res Res Acc Combat Hostiles Destroyed 116 | . 10 3 . 9 40 31 3 10 . 9 1 . . . . . . . . . Melee 5 | . 1 . . 3 . . . . . . 1 . . . . . . . . . Guns 77 | . 7 3 . 6 32 19 3 5 . 2 . . . . . . . . . . Cannons 7 | . . . . . 7 . . . . . . . . . . . . . . . AOE 24 | . . . . . . 12 . 5 . 7 . . . . . . . . . . Classes Destroyed 13 | 1 5 . . 1 4 2 . . . . . . . . . . . . . . Worker 14 | . 3 1 . . 4 6 . . . . . . . . . . . . . . Builder 2 | . . . . . 1 1 . . . . . . . . . . . . . . Hauler 5 | . . . . . 2 2 . . . . 1 . . . . . . . . . Recycler 7 | 1 1 . . . 2 3 . . . . . . . . . . . . . . Operator 3 | . 2 . . . 1 . . . . . . . . . . . . . . . Watcher 6 | . 2 . . . 2 2 . . . . . . . . . . . . . . Swarmer 38 | . 3 3 . 3 15 7 . 4 . 3 . . . . . . . . . . Grunt 44 | . 7 . . . 15 13 . 5 . 4 . . . . . . . . . . Duelist 4 | . . . . . 1 1 . 1 . 1 . . . . . . . . . . Sentry 13 | . . . . . 9 4 . . . . . . . . . . . . . . Hunter 6 | . . . . . . 3 3 . . . . . . . . . . . . . Programmer 5 | . . . . . . 3 . . . 1 1 . . . . . . . . . Assembled 6 | . . . . 6 . . . . . . . . . . . . . . . . Best Kill Streak 6 | 1 6 3 . 3 6 6 1 4 . 4 1 . . . . . . . . . Combat Bots Only 6 | . 3 3 . 3 5 6 1 4 . 4 1 . . . . . . . . . Max Kills in Single Turn 5 | 1 1 1 . 1 4 5 1 2 . 3 1 . . . . . . . . . Gunslinging 2 | . . . . . 2 1 . . . . . . . . . . . . . . Exploded 5 | . . . . . . 5 . 2 . 3 . . . . . . . . . . Melee 1 | . 1 . . 1 . . . . . . 1 . . . . . . . . . Uniques/NPCs Destroyed . | . . . . . . . . . . . . . . . . . . . . . Combat | -11 -10 -10 -10 -9 -8 -7 -7 -7 -7 -6 -6 -5 -5 -5 -4 -4 -4 -3 -2 -1 -------- Run | Scr Mat Min Exi Min Mat Fac Low Low Dat Pro Fac Fac Was Fac Fac Upp Upp Res Res Acc Damage Taken 5807 | . 332 60 . 1053 1355 1497 324 211 . 415 . . . 84 23 . . . 173 280 Core 770 | . 24 . . 80 145 151 57 18 . . . . . . . . . . 129 166 Absorbed by Shields . | . . . . . . . . . . . . . . . . . . . . . Core Remaining (%) 90 | 100 . . . 87 81 . . . . 71 100 . . 100 . . 100 100 83 79 Volleys Fired 220 | 2 27 7 . 19 69 58 5 10 4 13 4 . . . . . . . . 2 Largest 5 | 3 4 4 . 4 5 5 5 5 1 5 5 . . . . . . . . 1 Hottest 274 | 130 170 80 . 136 274 137 127 127 30 127 127 . . . . . . . . 94 Shots Fired 827 | 6 84 28 . 70 292 249 25 30 4 29 8 . . . . . . . . 2 Gun 733 | 6 84 28 . 64 234 240 25 25 . 20 5 . . . . . . . . 2 Cannon 64 | . . . . 6 58 . . . . . . . . . . . . . . . Launcher 22 | . . . . . . 8 . 5 . 9 . . . . . . . . . . Special 8 | . . . . . . 1 . . 4 . 3 . . . . . . . . . Kinetic 618 | . 40 28 . 64 171 240 25 25 . 20 5 . . . . . . . . . Thermal 122 | 2 22 . . 6 90 . . . . . . . . . . . . . . 2 Explosive 22 | . . . . . . 8 . 5 . 9 . . . . . . . . . . Electromagnetic 57 | 4 22 . . . 31 . . . . . . . . . . . . . . . Robot Hit Streak 17 | 4 9 3 . 6 17 14 10 6 2 12 8 . . . . . . . . . Robot Miss Streak 11 | . 4 6 . 4 11 9 3 4 2 3 2 . . . . . . . . . Penetration Max . | . . . . . . . . . . . . . . . . . . . . . Secondary Targets 17 | . 2 2 . 4 6 2 . 1 . . . . . . . . . . . . Max Gunslinging Chain 2 | . 1 1 . 1 2 1 . 1 . . . . . . . . . . . . Shots Hit Robots 658 | 4 63 10 3 47 227 220 19 28 2 21 11 . . 2 . . . . . 1 Core Hits 388 | 2 20 6 . 15 132 144 16 23 . 26 3 . . . . . . . . 1 Critical Hits 2 | . . . . . . 1 . . . . 1 . . . . . . . . . Critical Kills . | . . . . . . . . . . . . . . . . . . . . . Critical Parts Destroyed 2 | . . . . . . 1 . . . . 1 . . . . . . . . . Melee Attacks 175 | . 15 . 3 10 28 18 11 2 . 4 7 7 . 14 2 2 . 12 12 28 Impact 48 | . 15 . . 10 23 . . . . . . . . . . . . . . . Slashing 124 | . . . . . 5 18 11 2 . 4 7 7 . 14 2 2 . 12 12 28 Piercing . | . . . . . . . . . . . . . . . . . . . . . Sneak Attacks 25 | . 5 . 3 . 2 13 . . . . 1 . . 1 . . . . . . Combat Hostiles 1 | . 1 . . . . . . . . . . . . . . . . . . . Follow-up Attacks . | . . . . . . . . . . . . . . . . . . . . . Damage Inflicted 12692 | 49 942 64 . 347 3520 4761 240 983 . 1376 213 . . 156 . . . . . 41 Guns 6157 | 49 486 64 . 215 2616 2113 240 230 . 130 14 . . . . . . . . . Cannons 718 | . . . . 20 698 . . . . . . . . . . . . . . . Explosions 3297 | . 34 . . . 27 1237 . 753 . 1246 . . . . . . . . . . Melee 2479 | . 422 . . 105 148 1408 . . . . 199 . . 156 . . . . . 41 Ramming 41 | . . . . 7 31 3 . . . . . . . . . . . . . . Kinetic 5083 | . 194 64 . 215 1883 2113 240 230 . 130 14 . . . . . . . . . Thermal 1260 | 12 118 . . 20 1110 . . . . . . . . . . . . . . . Explosive 3236 | . . . . . . 1237 . 753 . 1246 . . . . . . . . . . Electromagnetic 593 | 37 208 . . . 348 . . . . . . . . . . . . . . . Impact 675 | . 422 . . 105 148 . . . . . . . . . . . . . . . Slashing 1804 | . . . . . . 1408 . . . . 199 . . 156 . . . . . 41 Piercing . | . . . . . . . . . . . . . . . . . . . . . Highest Corruption 4 | . 1 1 1 1 . 4 . . . 1 . . . . . . . . . 1 Average Corruption 1 | . 1 1 1 1 . 2 . . . 1 . . . . . . . . . 1 Corruption Purged 5 | . . . . . . 4 . . . 1 . . . . . . . . . . Effects 28 | . 1 . 4 3 . 17 . . . 3 . . . . . . . . . . Message Errors 8 | . . . 1 3 . 2 . . . 2 . . . . . . . . . . Matter Fused 3 | . . . . . . 3 . . . . . . . . . . . . . . Heat Flow Errors 3 | . . . . . . 3 . . . . . . . . . . . . . . Energy Discharges 6 | . . . 2 . . 4 . . . . . . . . . . . . . . Data Loss (minor) 4 | . 1 . 1 . . 1 . . . 1 . . . . . . . . . . Targeting Errors 3 | . . . . . . 3 . . . . . . . . . . . . . . Weapon Failures 1 | . . . . . . 1 . . . . . . . . . . . . . . Overload Shots . | . . . . . . . . . . . . . . . . . . . . . Overflow Damage 644 | . 51 . . . 30 498 . 34 . 31 . . . . . . . . . . Projectiles 12 | . . . . . 12 . . . . . . . . . . . . . . . Explosions 65 | . . . . . . . . 34 . 31 . . . . . . . . . . Melee 567 | . 51 . . . 18 498 . . . . . . . . . . . . . . Knockbacks 4 | . 4 . . . . . . . . . . . . . . . . . . . Impact 4 | . 4 . . . . . . . . . . . . . . . . . . . Kinetic . | . . . . . . . . . . . . . . . . . . . . . Secondary . | . . . . . . . . . . . . . . . . . . . . . Self-Inflicted Damage . | . . . . . . . . . . . . . . . . . . . . . Shots . | . . . . . . . . . . . . . . . . . . . . . Rammed 6 | . . . . 1 4 1 . . . . . . . . . . . . . . Targets Rammed 6 | . . . . 1 4 1 . . . . . . . . . . . . . . Kicked . | . . . . . . . . . . . . . . . . . . . . . Crushed . | . . . . . . . . . . . . . . . . . . . . . Highest Temperature 537 | 138 478 75 . 245 467 537 90 42 . 372 175 124 188 301 5 1 1 4 114 150 Average Temperature 113 | 69 199 26 . 75 149 125 32 17 . 81 72 42 91 128 5 1 1 1 83 65 Received Heat Transfer 1438 | . 123 . . 469 396 234 . 36 . 117 . . . . . . . . 18 45 Effects 46 | . 19 . . . 16 7 . . . 3 . . . 1 . . . . . . Shutdowns 13 | . 5 . . . 4 2 . . . 2 . . . . . . . . . . Energy Bleed 7 | . 3 . . . 3 1 . . . . . . . . . . . . . . Interference 12 | . 3 . . . 5 2 . . . 1 . . . 1 . . . . . . Matter Decay 3 | . 2 . . . . 1 . . . . . . . . . . . . . . Short Circuit 4 | . 3 . . . . 1 . . . . . . . . . . . . . . Damage (minor) 6 | . 3 . . . 3 . . . . . . . . . . . . . . . Damage (major) 1 | . . . . . 1 . . . . . . . . . . . . . . . Siege Activations . | . . . . . . . . . . . . . . . . . . . . . Robots Corrupted 2 | . 2 . . . . . . . . . . . . . . . . . . . Combat Hostiles 2 | . 2 . . . . . . . . . . . . . . . . . . . Parts Fried 6 | . 2 . . . 4 . . . . . . . . . . . . . . . Impact Corruptions 8 | . 4 . . . 4 . . . . . . . . . . . . . . . Robots Melted 1 | . . . . . 1 . . . . . . . . . . . . . . . Combat Hostiles 1 | . . . . . 1 . . . . . . . . . . . . . . . Parts Melted 5 | . . . . . 5 . . . . . . . . . . . . . . . Heat Transferred 2629 | 37 285 . . 37 2270 . . . . . . . . . . . . . . . Parts Sabotaged . | . . . . . . . . . . . . . . . . . . . . . Parts Stolen . | . . . . . . . . . . . . . . . . . . . . . Parts Stripped . | . . . . . . . . . . . . . . . . . . . . . Power Chain Reactions 2 | . 1 . . . 1 . . . . . . . . . . . . . . . Missiles Intercepted . | . . . . . . . . . . . . . . . . . . . . . Alert | -11 -10 -10 -10 -9 -8 -7 -7 -7 -7 -6 -6 -5 -5 -5 -4 -4 -4 -3 -2 -1 ------- Run | Scr Mat Min Exi Min Mat Fac Low Low Dat Pro Fac Fac Was Fac Fac Upp Upp Res Res Acc Peak Influence 594 | 5 257 105 . 70 594 535 . . . . 187 126 44 293 47 . . 125 213 295 Average Influence 172 | 2 147 96 . 50 156 340 . . . . 119 77 44 121 40 . . 62 132 184 Maximum Alert Level 2 | . 1 . . . 2 2 . . . . . . . 1 . . . . 1 1 Low Security (%) 69 | 100 69 100 . 100 71 24 . . . . 100 100 100 78 100 . . 100 99 76 Level 1 19 | . 30 . . . 23 28 . . . . . . . 21 . . . . . 23 Level 2 11 | . . . . . 4 46 . . . . . . . . . . . . . . Level 3 . | . . . . . . . . . . . . . . . . . . . . . Level 4 . | . . . . . . . . . . . . . . . . . . . . . Level 5 . | . . . . . . . . . . . . . . . . . . . . . High Security . | . . . . . . . . . . . . . . . . . . . . . Max Security . | . . . . . . . . . . . . . . . . . . . . . Squads Dispatched 31 | . 2 . . . 5 8 . . . . 1 1 . 9 . . . 1 1 3 Investigation 11 | . . . . . 1 2 . . . . . 1 . 5 . . . . 1 1 Extermination 5 | . . . . . . 3 . . . . 1 . . . . . . . . 1 Reinforcement 9 | . 2 . . . 2 2 . . . . . . . 1 . . . 1 . 1 Assault . | . . . . . . . . . . . . . . . . . . . . . Garrison 6 | . . . . . 2 1 . . . . . . . 3 . . . . . . Intercept . | . . . . . . . . . . . . . . . . . . . . . Construction Impeded 1 | . . . . . . 1 . . . . . . . . . . . . . . Haulers Reinforced 1 | . . . . . . . . . . . . . . 1 . . . . . . Stealth | -11 -10 -10 -10 -9 -8 -7 -7 -7 -7 -6 -6 -5 -5 -5 -4 -4 -4 -3 -2 -1 --------- Run | Scr Mat Min Exi Min Mat Fac Low Low Dat Pro Fac Fac Was Fac Fac Upp Upp Res Res Acc Distress Signals 12 | . 1 . . . 3 1 . . . . 1 . . 3 1 . . . 1 1 Communications Jammed . | . . . . . . . . . . . . . . . . . . . . . Distress Signals . | . . . . . . . . . . . . . . . . . . . . . Times Spotted 216 | . 21 2 . 22 61 33 3 15 . 12 9 2 . 7 3 . . 5 9 12 Peak Tracking Total 16 | . 5 2 . 16 6 5 1 4 . 4 2 1 . 3 3 . . 4 4 8 Tactical Retreats 18 | . 3 . . 3 4 . . 5 . . . . . . . . . . 2 1 Traps | -11 -10 -10 -10 -9 -8 -7 -7 -7 -7 -6 -6 -5 -5 -5 -4 -4 -4 -3 -2 -1 ------- Run | Scr Mat Min Exi Min Mat Fac Low Low Dat Pro Fac Fac Was Fac Fac Upp Upp Res Res Acc Traps Triggered 6 | . 2 . . . 1 1 . . . . . 1 . 1 . . . . . . Indirectly . | . . . . . . . . . . . . . . . . . . . . . Trap Hack Attempts . | . . . . . . . . . . . . . . . . . . . . . Triggered . | . . . . . . . . . . . . . . . . . . . . . Disarmed . | . . . . . . . . . . . . . . . . . . . . . Reprogrammed . | . . . . . . . . . . . . . . . . . . . . . Reused . | . . . . . . . . . . . . . . . . . . . . . Traps Extracted . | . . . . . . . . . . . . . . . . . . . . . Installed . | . . . . . . . . . . . . . . . . . . . . . Triggered . | . . . . . . . . . . . . . . . . . . . . . Power Sources Rigged 1 | . . . . . . 1 . . . . . . . . . . . . . . Exploded 4 | . . . . 3 . 1 . . . . . . . . . . . . . . Machines | -11 -10 -10 -10 -9 -8 -7 -7 -7 -7 -6 -6 -5 -5 -5 -4 -4 -4 -3 -2 -1 ---------- Run | Scr Mat Min Exi Min Mat Fac Low Low Dat Pro Fac Fac Was Fac Fac Upp Upp Res Res Acc Machines Disabled 6 | . . . . . 2 . . . . . 3 . . . . . . . . 1 Max in Single Turn 1 | . . . . . 1 . . . . . 1 . . . . . . . . 1 Garrison Access 6 | . . . . . 1 1 . . . . 2 . . 1 . . . . . 1 Energy Cycler 1 | . . . . . . . . . . . . . . . . . . . . 1 Machines Sabotaged . | . . . . . . . . . . . . . . . . . . . . . Garrisons Compromised . | . . . . . . . . . . . . . . . . . . . . . Overloaded Fab Kills . | . . . . . . . . . . . . . . . . . . . . . Fab Network Shutdowns . | . . . . . . . . . . . . . . . . . . . . . Hacking | -11 -10 -10 -10 -9 -8 -7 -7 -7 -7 -6 -6 -5 -5 -5 -4 -4 -4 -3 -2 -1 --------- Run | Scr Mat Min Exi Min Mat Fac Low Low Dat Pro Fac Fac Was Fac Fac Upp Upp Res Res Acc Machines Accessed 81 | . 5 . 2 . 14 11 1 . 4 . 8 4 . 12 . . . 7 3 10 Terminals 47 | . 5 . . . 9 5 . . . . 4 2 . 7 . . . 6 3 6 Fabricators 10 | . . . . . . 3 . . . . 2 2 . 2 . . . 1 . . Repair Stations 5 | . . . . . 2 1 . . . . . . . . . . . . . 2 Recycling Units . | . . . . . . . . . . . . . . . . . . . . . Scanalyzers 4 | . . . . . 2 1 . . . . . . . 1 . . . . . . Garrison Access 8 | . . . . . 1 1 . . . . 2 . . 2 . . . . . 2 Total Hacks 254 | . 16 . 2 . 46 27 1 . 29 . 23 18 . 49 . . . 16 11 16 Successful 174 | . 7 . 2 . 35 15 1 . 29 . 18 16 . 29 . . . 10 7 5 Failed 79 | . 9 . . . 11 12 . . . . 5 1 . 20 . . . 6 4 11 Catastrophic 13 | . 1 . . . . 4 . . . . 1 . . 1 . . . 1 1 4 Database Lockouts 1 | . . . . . . . . . . . . 1 . . . . . . . . Manual 90 | . 7 . 1 . 9 3 . . . . 13 10 . 20 . . . 10 10 7 Terminals 137 | . 16 . . . 25 13 . . . . 12 12 . 25 . . . 12 11 11 Fabricators 35 | . . . . . . 6 . . . . 9 6 . 10 . . . 4 . . Repair Stations 18 | . . . . . 10 5 . . . . . . . . . . . . . 3 Recycling Units . | . . . . . . . . . . . . . . . . . . . . . Scanalyzers 19 | . . . . . 10 2 . . . . . . . 7 . . . . . . Garrison Access 13 | . . . . . 1 1 . . . . 2 . . 7 . . . . . 2 Terminal Hacks 75 | . 4 . 2 . 12 1 1 . 29 . 3 7 . 8 . . . 3 3 2 Record 12 | . . . 1 . . . . . 11 . . . . . . . . . . . Part Schematic 14 | . . . . . . . . . 10 . 1 1 . 2 . . . . . . Robot Schematic 5 | . . . . . . . . . 5 . . . . . . . . . . . Prototype ID Bank 11 | . 2 . . . 4 . . . 3 . . . . . . . . 1 1 . Open Door 1 | . . . . . . . 1 . . . . . . . . . . . . . Level Access Points 2 | . . . . . . . . . . . . 1 . . . . . . 1 . Branch Access Points 3 | . . . . . 1 1 . . . . . . . . . . . 1 . . Machine Index 1 | . . . . . . . . . . . . . . 1 . . . . . . Terminal Index 3 | . . . . . . . . . . . . 1 . . . . . . 1 1 Scanalyzer Index 1 | . . . . . . . . . . . 1 . . . . . . . . . Alert Level 1 | . 1 . . . . . . . . . . . . . . . . . . . Unreport Threat 3 | . . . . . 3 . . . . . . . . . . . . . . . Locate Traps 4 | . . . . . 2 . . . . . . 1 . . . . . . . 1 Recall Investigation 3 | . . . . . . . . . . . . 1 . 2 . . . . . . Hauler Manifests 7 | . 1 . . . 2 . . . . . 1 1 . 1 . . . 1 . . Registered Components 1 | . . . . . . . . . . . . . . 1 . . . . . . Registered Prototypes 1 | . . . . . . . . . . . . . . 1 . . . . . . Zone Layout 1 | . . . . . . . . . . . . 1 . . . . . . . . EX-Prototype ID Bank 1 | . . . 1 . . . . . . . . . . . . . . . . . Fabricator Hacks 25 | . . . . . . 6 . . . . 5 5 . 6 . . . 3 . . Load Schematic 11 | . . . . . . 3 . . . . 2 2 . 3 . . . 1 . . Build 14 | . . . . . . 3 . . . . 3 3 . 3 . . . 2 . . Repair Station Hacks 13 | . . . . . 9 4 . . . . . . . . . . . . . . Scan Component 7 | . . . . . 5 2 . . . . . . . . . . . . . . Repair 6 | . . . . . 4 2 . . . . . . . . . . . . . . Recycling Unit Hacks . | . . . . . . . . . . . . . . . . . . . . . Scanalyzer 19 | . . . . . 10 2 . . . . . . . 7 . . . . . . Insert Component 11 | . . . . . 6 1 . . . . . . . 4 . . . . . . Analyze 8 | . . . . . 4 1 . . . . . . . 3 . . . . . . Garrison Access Hacks 6 | . . . . . 1 1 . . . . 2 . . 1 . . . . . 1 Seal Access 6 | . . . . . 1 1 . . . . 2 . . 1 . . . . . 1 Unauthorized Hacks 99 | . 9 . . . 9 4 . . . . 18 9 . 20 . . . 12 10 8 Terminals 29 | . 3 . . . 3 1 . . . . 4 3 . 6 . . . 3 4 2 Track 8 | . 1 . . . 1 . . . . . . 1 . 3 . . . . 2 . Assimilate 7 | . . . . . 1 . . . . . 2 1 . 1 . . . 1 1 . Botnet 14 | . 2 . . . 1 1 . . . . 2 1 . 2 . . . 2 1 2 Fabricators 7 | . . . . . . . . . . . 4 1 . 1 . . . 1 . . Report 1 | . . . . . . . . . . . 1 . . . . . . . . . Prioritize 4 | . . . . . . . . . . . 1 1 . 1 . . . 1 . . Siphon 1 | . . . . . . . . . . . 1 . . . . . . . . . Haulers 1 | . . . . . . . . . . . 1 . . . . . . . . . Repair Stations . | . . . . . . . . . . . . . . . . . . . . . Recycling Units . | . . . . . . . . . . . . . . . . . . . . . Scanalyzers . | . . . . . . . . . . . . . . . . . . . . . Garrison Access . | . . . . . . . . . . . . . . . . . . . . . Data Cores Recovered 3 | . 1 . . . 1 . . . . . 1 . . . . . . . . . Used 3 | . 1 . . . 1 . . . . . 1 . . . . . . . . . Hacking Detections 62 | . 5 . . . 10 9 . . . . 5 4 . 12 . . . 6 3 8 Full Trace Events 10 | . . . . . 1 2 . . . . . . . 5 . . . . 1 1 Feedback Events 1 | . . . . . . . . . . . . . . . . . . . . 1 Corruption 1 | . . . . . . . . . . . . . . . . . . . . 1 Feedback Blocked . | . . . . . . . . . . . . . . . . . . . . . Robot Schematics Acquired 5 | . . . . . . . . . 5 . . . . . . . . . . . Robots Built . | . . . . . . . . . . . . . . . . . . . . . Matter . | . . . . . . . . . . . . . . . . . . . . . Time . | . . . . . . . . . . . . . . . . . . . . . Total Robot Build Rating . | . . . . . . . . . . . . . . . . . . . . . Part Schematics Acquired 22 | . . . . . 4 1 . . 10 . 1 1 . 5 . . . . . . Parts Built 12 | . . . . . . 2 . . . . 2 3 . 3 . . . 2 . . Matter 2900 | . . . . . . 438 . . . . 401 636 . 855 . . . 570 . . Time 986 | . . . . . . 174 . . . . 182 212 . 304 . . . 114 . . Total Part Build Rating 55 | . . . . . . 6 . . . . 6 18 . 15 . . . 10 . . Parts Repaired 6 | . . . . . 4 2 . . . . . . . . . . . . . . Time 190 | . . . . . 102 88 . . . . . . . . . . . . . . Parts Recycled . | . . . . . . . . . . . . . . . . . . . . . Recycled Matter . | . . . . . . . . . . . . . . . . . . . . . Retrieved Matter . | . . . . . . . . . . . . . . . . . . . . . Retrieved Components . | . . . . . . . . . . . . . . . . . . . . . Parts Scanalyzed 8 | . . . . . 4 1 . . . . . . . 3 . . . . . . Part Schematics Acquired 8 | . . . . . 4 1 . . . . . . . 3 . . . . . . Parts Damaged . | . . . . . . . . . . . . . . . . . . . . . Bothacking | -11 -10 -10 -10 -9 -8 -7 -7 -7 -7 -6 -6 -5 -5 -5 -4 -4 -4 -3 -2 -1 ------------ Run | Scr Mat Min Exi Min Mat Fac Low Low Dat Pro Fac Fac Was Fac Fac Upp Upp Res Res Acc Used RIF Installer . | . . . . . . . . . . . . . . . . . . . . . Robots Hacked 6 | . . . 3 . . 1 . . 1 . 1 . . . . . . . . . Non-combat 4 | . . . 2 . . 1 . . . . 1 . . . . . . . . . Combat 2 | . . . 1 . . . . . 1 . . . . . . . . . . . Robot Hacks Applied 7 | . . . 3 . . 1 . . 2 . 1 . . . . . . . . . parse_system 5 | . . . 3 . . . . . 2 . . . . . . . . . . . find_chute 2 | . . . . . . 1 . . . . 1 . . . . . . . . . Relay Couplers Released . | . . . . . . . . . . . . . . . . . . . . . Robots Rewired 1 | . . . . . . . . . . . 1 . . . . . . . . . Allies Hacked 1 | . . . . . . . . . . . . . . 1 . . . . . . Hacks Repelled . | . . . . . . . . . . . . . . . . . . . . . Allies | -11 -10 -10 -10 -9 -8 -7 -7 -7 -7 -6 -6 -5 -5 -5 -4 -4 -4 -3 -2 -1 -------- Run | Scr Mat Min Exi Min Mat Fac Low Low Dat Pro Fac Fac Was Fac Fac Upp Upp Res Res Acc Total Allies 26 | . . . . . . . . . . 1 2 1 20 1 . . . 1 . . Largest Group 21 | . . . . . . . . . . 1 3 1 21 21 2 . . 1 1 . Highest-Rated Group 795 | . . . . . . . . . . 94 132 10 795 795 36 . . 10 9 . Highest-Rated Ally 94 | . . . . . . . . . . 94 94 10 46 46 26 . . 10 9 . Total Orders 10 | . . . . . . . . . . . 6 2 . . . . . 2 . . STAY 2 | . . . . . . . . . . . 1 1 . . . . . . . . GOTO 2 | . . . . . . . . . . . 1 . . . . . . 1 . . FOLLOW 4 | . . . . . . . . . . . 2 1 . . . . . 1 . . EXPLORE 2 | . . . . . . . . . . . 2 . . . . . . . . . Ally Attacks 147 | . . . . . . . . . . 18 13 . . 116 . . . . . . Total Damage 3739 | . . . . . . . . . . 686 333 . . 2720 . . . . . . Kills 22 | . . . . . . . . . . 2 2 . . 18 . . . . . . Allies Corrupted . | . . . . . . . . . . . . . . . . . . . . . Allies Melted . | . . . . . . . . . . . . . . . . . . . . . Intel | -11 -10 -10 -10 -9 -8 -7 -7 -7 -7 -6 -6 -5 -5 -5 -4 -4 -4 -3 -2 -1 ------- Run | Scr Mat Min Exi Min Mat Fac Low Low Dat Pro Fac Fac Was Fac Fac Upp Upp Res Res Acc Robot Analysis Total . | . . . . . . . . . . . . . . . . . . . . . Derelict Logs Recovered 8 | . . 1 . . . . 1 3 . . . . . . . 1 2 . . . Drone Launches 2 | . . . . . . . . . . . 2 . . . . . . . . . Drone Recoveries . | . . . . . . . . . . . . . . . . . . . . . Exploration | -11 -10 -10 -10 -9 -8 -7 -7 -7 -7 -6 -6 -5 -5 -5 -4 -4 -4 -3 -2 -1 ------------- Run | Scr Mat Min Exi Min Mat Fac Low Low Dat Pro Fac Fac Was Fac Fac Upp Upp Res Res Acc Turns Passed 14676 | 88 804 88 362 538 3279 1965 1610 1447 307 1228 551 271 316 685 83 66 20 283 203 482 Spaces Moved 11452 | 60 535 55 280 336 1552 879 865 782 168 638 926 302 268 1563 79 177 67 439 380 1101 Core 1 | 1 . . . . . . . . . . . . . . . . . . . . Treads 4886 | 6 31 1 . 30 1470 879 865 782 168 638 16 . . . . . . . . . Legs 17 | 17 . . . . . . . . . . . . . . . . . . . . Wheels 1262 | 36 504 54 280 306 82 . . . . . . . . . . . . . . . Hover . | . . . . . . . . . . . . . . . . . . . . . Flight 5286 | . . . . . . . . . . . 910 302 268 1563 79 177 67 439 380 1101 Fastest Speed 23 | 50 90 120 120 120 120 172 178 178 178 178 26 26 26 26 23 29 29 29 26 29 Average Speed 102 | 104 113 121 120 130 172 175 178 178 178 178 29 35 26 26 95 29 29 29 31 31 Slowest Speed 200 | 160 180 180 120 200 200 178 178 178 178 178 178 96 26 26 102 29 29 29 32 32 Overloaded Moves 59 | . . . . . . . . . . . . . . . 5 . . . 26 28 Propulsion Burnouts . | . . . . . . . . . . . . . . . . . . . . . Robots Hopped 29 | . . . . . . . . . . . 4 . . 8 1 . . 2 3 11 Cave-ins Triggered . | . . . . . . . . . . . . . . . . . . . . . Exploration Rate (%) 46 | 4 95 16 61 53 97 25 90 86 68 70 34 6 96 42 4 48 24 18 11 27 Regions Visited 20 Branch Regions 9 Pre-discovered Areas 4 | . . . 1 . . . 1 . 1 . . . . . . . 1 . . . Known Exits Taken 5 | . . . . . . 1 . . . 1 1 . . 1 . . . . 1 . Unknown Exits Taken 13 | 1 1 1 1 1 1 . 1 1 1 . . . . . 1 1 1 1 . . Scrap Searched 14 | . . . . 2 . . 3 4 . 4 . . . . . 1 . . . . Spaces Dug 95 | . . . . . 8 2 11 2 . 4 1 7 . 12 2 2 . 12 11 21 Terrain Destroyed 280 | . 5 . . . 15 35 11 38 . 74 1 7 . 12 2 2 . 12 11 55 Melee 95 | . . . . . 8 2 11 2 . 4 1 7 . 12 2 2 . 12 11 21 Projectile 1 | . . . . . 1 . . . . . . . . . . . . . . . AOE 184 | . 5 . . . 6 33 . 36 . 70 . . . . . . . . . 34 Actions | -11 -10 -10 -10 -9 -8 -7 -7 -7 -7 -6 -6 -5 -5 -5 -4 -4 -4 -3 -2 -1 --------- Run | Scr Mat Min Exi Min Mat Fac Low Low Dat Pro Fac Fac Was Fac Fac Upp Upp Res Res Acc Total 13669 | 75 649 64 302 386 1948 1145 904 813 173 694 1202 461 513 1815 81 189 66 574 441 1174 Wait 1326 | . 24 3 14 3 153 107 7 2 . 13 196 138 246 209 . 1 . 118 49 43 Move 11375 | 59 534 54 279 335 1551 878 864 781 167 637 917 302 267 1546 76 176 66 434 374 1078 Hop 28 | . . . . . . . . . . . 4 . . 8 1 . . 2 2 11 Pick Up 132 | 3 18 . 4 2 53 25 2 4 . 2 3 4 . 6 1 . . 1 1 3 Fast Attach 63 | 10 16 . . 3 17 3 . . . 2 4 1 . 3 . 1 . 3 . . Attach 44 | . 1 . . 4 9 5 . 2 . 2 8 2 . 8 . 2 . . . 1 Detach 30 | . . . . . . 1 . . . . 16 3 . 8 . 1 . . . 1 Swap 133 | 1 3 . 2 4 29 24 12 10 2 19 12 . . 6 1 1 . . 2 5 Drop 133 | . 11 . . 5 35 22 3 2 . 2 30 4 . 7 . 5 . 4 1 2 Fire 220 | 2 27 7 . 19 69 58 5 10 4 13 4 . . . . . . . . 2 Melee 175 | . 15 . 3 10 28 18 11 2 . 4 7 7 . 14 2 2 . 12 12 28 Ram . | . . . . . . . . . . . . . . . . . . . . . Kick . | . . . . . . . . . . . . . . . . . . . . . Crush 6 | . . . . 1 4 1 . . . . . . . . . . . . . . Escape Stasis 2 | . . . . . . 2 . . . . . . . . . . . . . . Rewire . | . . . . . . . . . . . . . . . . . . . . . Trap 1 | . . . . . . 1 . . . . . . . . . . . . . . Miscellaneous 1 | . . . . . . . . . . . 1 . . . . . . . . . Route ------- -11/Scrapyard -10/Materials (discovered 5 exits: [*Mat x3] / [*Min x2]) -10/Mines (discovered 2 exits: [*Mat] / *Exi) -10/Exiles -9/Mines -8/Materials (discovered 3 exits: *Fac x3) -7/Factory (discovered 3 exits: *Fac / *Low x2) -7/Lower Caves -7/Lower Caves (discovered 2 exits: Fac / *Dat) -7/Data Miner -6/Proximity Caves -6/Factory -5/Factory (discovered 4 exits: Fac x4) -5/Waste -5/Factory (discovered 2 exits: *Fac / [*Upp]) -4/Factory -4/Upper Caves -4/Upper Caves -3/Research (discovered 4 exits: *Res x2 / Tes x2) -2/Research (discovered 4 exits: *Acc x3 / Qua) -1/Access To Epsilon Eridani History --------- Turn | Location | Event 11 | -11/Scrapyard | Discovered new exit (range 15) 89 | -11/Scrapyard | Entered Materials 145 | -10/Materials | Discovered new exit (range 16) 221 | -10/Materials | Discovered new exit (range 3) 393 | -10/Materials | Discovered new exit (range 16) 480 | -10/Materials | Discovered new exit (range 5) 561 | -10/Materials | Discovered new exit (range 16) 893 | -10/Materials | Entered Mines 934 | -10/Mines | Learned 2 Materials zone layouts 940 | -10/Mines | Discovered new exit (range 9) 975 | -10/Mines | Deemed a non-threat by the Exiles lab entrance 976 | -10/Mines | Discovered new exit (range 5) 981 | -10/Mines | Entered Exiles 1016 | -10/Exiles | Met 8R-AWN 1039 | -10/Exiles | Met EX-HEX 1074 | -10/Exiles | Met EX-BIN 1091 | -10/Exiles | Aligned with FarCom system 1092 | -10/Exiles | Given EX-Vault access code 1121 | -10/Exiles | Opened EX-Vault 1130 | -10/Exiles | Found PSU Rigger 1159 | -10/Exiles | Warned to stay clear of 0b10 Research branches 1171 | -10/Exiles | Exiles lab attacked by MAIN.C 1198 | -10/Exiles | Learned location of Zion (-6) 1244 | -10/Exiles | Discovered new exit (range 10) 1322 | -10/Exiles | Build established: Hauler-Mutant 1343 | -10/Exiles | Left Exiles lab with PSU Rigger 1343 | -10/Exiles | Entered Mines 1426 | -9/Mines | Met a Derelict bent on vengeance 1518 | -9/Mines | Discovered new exit (range 8) 1705 | -9/Mines | Assembled infested the area 1710 | -9/Mines | Assisted by a Guerilla fighting off Assembled 1849 | -9/Mines | Lost 12 parts (2p4n2u4w) 1881 | -9/Mines | Entered Materials 1881 | -8/Materials | Devolved, losing 2 slots: Utility x-2 2029 | -8/Materials | Garrison activated, responded to threat 2169 | -8/Materials | Garrison activated, responded to threat 2290 | -8/Materials | Discovered new exit (range 5) 2797 | -8/Materials | Build established: Scavenger-Skirmisher 2799 | -8/Materials | Repaired Hcp. Storage Unit 3094 | -8/Materials | Discovered new exit (range 11) 3102 | -8/Materials | Build established: Scavenger-Mutant 3149 | -8/Materials | Lost 3 parts (3w) 4350 | -8/Materials | Build established: Hauler-Skirmisher 4505 | -8/Materials | Discovered new exit (range 10) 4920 | -8/Materials | Repaired Minigun 5095 | -8/Materials | Repaired Hrd. Medium Armor Plating 5114 | -8/Materials | Repaired Adv. Treads 5160 | -8/Materials | Entered Factory 5160 | -7/Factory | Devolved, losing 1 slot: Utility x-1 5539 | -7/Factory | Fabricated Imp. VTOL Module (x1) 5865 | -7/Factory | Discovered new exit (range 13) 5874 | -7/Factory | Garrison activated, responded to threat 5896 | -7/Factory | Fabricated Imp. VTOL Module? 5933 | -7/Factory | Identified exit to Factory 6614 | -7/Factory | Repaired Flak Gun 6660 | -7/Factory | Repaired Flak Gun 6875 | -7/Factory | Identified exit to Lower Caves 7125 | -7/Factory | Entered Lower Caves 7355 | -7/Lower Caves | Build established: Hauler-Mutant 7772 | -7/Lower Caves | Build established: Hauler-Tank 8382 | -7/Lower Caves | Build established: Hauler-Mutant 8458 | -7/Lower Caves | Spotted B-75 Beast 8568 | -7/Lower Caves | Discovered new exit (range 11) 8686 | -7/Lower Caves | Acquired the password to a Derelict Tinkerer's latest research 8735 | -7/Lower Caves | Entered another Lower Caves area 8752 | -7/Lower Caves | Learned Factory trap positions 8776 | -7/Lower Caves | Learned location of 1 exit from Factory 9329 | -7/Lower Caves | Build established: Hauler-Tank 9789 | -7/Lower Caves | Discovered new exit (range 12) 10182 | -7/Lower Caves | Entered Data Miner 10182 | -7/Data Miner | Discovered new exit (range 6) 10216 | -7/Data Miner | Met Data Miner 10252 | -7/Data Miner | Learned location of Section 7 (-2) 10252 | -7/Data Miner | Acquired the access code to Warlord's prototype stash 10282 | -7/Data Miner | Received God Mode back door access code from Data Miner 10489 | -7/Data Miner | Entered Proximity Caves 10706 | -6/Proximity Caves | Escorted by Enhanced Grunt 11118 | -6/Proximity Caves | Found Alien Artifact 11118 | -6/Proximity Caves | Identified Core Expander 11118 | -6/Proximity Caves | Installed Core Expander, added new Utility slot 11314 | -6/Proximity Caves | Build established: Hauler-Mutant 11625 | -6/Proximity Caves | Build established: Hauler-Tank 11668 | -6/Proximity Caves | Discovered exit to Factory (range 8) 11717 | -6/Proximity Caves | Entered Factory 11717 | -6/Factory | Accompanied by 1 ally 11717 | -6/Factory | Devolved, losing 1 slot: Utility x-1 11718 | -6/Factory | Identified exit to Factory 11719 | -6/Factory | Loaded intel: 108 trap records 12187 | -6/Factory | Fabricated Hacking Suite? 12256 | -6/Factory | Fabricated Hacking Suite (x1) 12268 | -6/Factory | Entered another Factory area 12268 | -5/Factory | Devolved, losing 1 slot: Utility x-1 12407 | -5/Factory | Identified exit to Factory 12483 | -5/Factory | Fabricated Adv. Hacking Suite (x1) 12494 | -5/Factory | Fabricated Adv. Hacking Suite? 12518 | -5/Factory | Central database locked down 12536 | -5/Factory | Fabricated Adv. Hacking Suite? 12539 | -5/Factory | Manually triggered Chute Trap 12539 | -5/Factory | Sucked down chute 12539 | -5/Factory | Entered Waste 12540 | -5/Waste | Joined by Warlord forces that had cleared the area 12565 | -5/Waste | 1 allies followed down the chute 12637 | -5/Waste | Discovered new exit (range 11) 12646 | -5/Waste | Build established: Hacker-Sprinter 12855 | -5/Waste | Entered Factory 12855 | -5/Factory | Accompanied by 21 allies 12946 | -5/Factory | Incoming investigation squad redirected 13013 | -5/Factory | Garrison activated, responded to threat 13040 | -5/Factory | Incoming investigation squad redirected 13056 | -5/Factory | Incoming investigation squad redirected 13084 | -5/Factory | Fabricated Exp. Terrain Scanner? 13092 | -5/Factory | Discovered new exit (range 9) 13196 | -5/Factory | Found Prototype Processor 13228 | -5/Factory | Discovered exit to Factory (range 16) 13263 | -5/Factory | Identified Exp. Signal Interpreter 13334 | -5/Factory | Fabricated Exp. Terrain Scan Processor? 13373 | -5/Factory | Incoming investigation squad redirected 13432 | -5/Factory | Fabricated Cld. Cesium-ion Thruster (x1) 13540 | -5/Factory | Entered another Factory area 13540 | -4/Factory | Accompanied by 2 allies 13540 | -4/Factory | Devolved, losing 1 slot: Propulsion x-1 13615 | -4/Factory | Discovered new exit (range 8) 13623 | -4/Factory | Entered Upper Caves 13660 | -4/Upper Caves | Learned Research trap positions 13673 | -4/Upper Caves | Discovered new exit (range 23) 13689 | -4/Upper Caves | Entered another Upper Caves area 13700 | -4/Upper Caves | Learned location of Testing (-3) 13703 | -4/Upper Caves | Discovered new exit (range 15) 13709 | -4/Upper Caves | Entered Research 13709 | -3/Research | Devolved, losing 1 slot: Utility x-1 13710 | -3/Research | Loaded intel: 82 trap records 13744 | -3/Research | Discovered new exit (range 30) 13833 | -3/Research | Fabricated Cld. Cesium-ion Thruster (x1) 13871 | -3/Research | Fabricated Cld. Cesium-ion Thruster (x1) 13917 | -3/Research | Discovered new exit (range 29) 13947 | -3/Research | Identified exit to Testing 13992 | -3/Research | Entered another Research area 13992 | -2/Research | Accompanied by 1 ally 13992 | -2/Research | Devolved, losing 1 slot: Propulsion x-1 13993 | -2/Research | Identified exit to Quarantine 14001 | -2/Research | Identified exit to Access 14013 | -2/Research | Build established: Machinist-Scout 14069 | -2/Research | Incoming investigation squad redirected 14195 | -2/Research | Entered Access 14195 | -1/Access | Devolved, losing 1 slot: Utility x-1 14596 | -1/Access | Energy Cycler disabled 14675 | -1/Access | Discovered new exit (range 6) 14677 | *** | Escaped! Last Messages --------------- 14550_ Connecting with Terminal... >>Traps(Locate) Found 6 traps in 1 array: 6x Alarm Trap Map updated. 14566_ O-32 Director: "IFF HANDSHAKE FAILED. SECURING TERMINAL." 14572_ ALERT: Hostiles spotted, dispatching reinforcements to Terminal A015. 14579_ K-01 Serf cleans the Sealed Freight Elevator. 14596_ ALERT: Power surge detected, dispatching additional patrols. 14596_ Energy Cycler explodes. 14607_ U-05 Engineer lays Concrete. 14608_ U-05 Engineer builds a Wall. 14609_ Discarded Adv. Hacking Suite. 14663_ Slug penetrates Wall. 14663_ Slug penetrates H-88 Terminator. 14663_ Penetrated by Slug. 14671_ K-01 Serf destroyed. 14675_ The Access Shell folds into the floor. 14675_ EXIT=FOUND [Achievement: Grand Amoeba] Map ----- +----------------------------------------------------+ | #?#??#?#?#?#?#?#?#?#????##??????????? | | #?#####?##?#????##??????#???????????? | | #######+### #?###?#??##??????##??#??????????????? | | ? ? ?## ###?#?####?#?##??##??##?????????????? | | ? ? ?# ##?###########?#??#?#???????????????? | | ? ?? ## #? ! #??#??#?#?????# ??????????? | | ? ? ? ## ## #??##??#??#?#?????????????? | | ?? ?? # # #??#????#???#??? ????????? | | ?? ? ? # T" # " ##????#?#??#?#????????????? | | ? ? # "" + """ ##??###???????#???????????? | | ? """ # # """ ###??####?#???????????????? | | ??" ## ## " ##??##???#?#?#????????????? | | ??" ## #? #####???###?#?#? ?????????? | | ? ? ## ##? #????##?#????#? ??????????? | | ? ??# #???########??#?###??###????????????? | | ########### ####?####???##?#??#?#???##??????????? | | #?##?#???#?##?##???#??#?????????????? | | ##### #?#??????##??###????#????#??????????? | | #?### ###?########???#?##?#???#???????????? | | ##### ####### ###########???#?#???????????? | | #???# """T""" "?"????????????????? | | ###?# """ """ "??"?BB????????????? | | ##### """? BB????????????? | | ##### g g """?? ?? ??????????? | | #?### gg "" ""?????????????????? | | ##### @" "??" ??????????????? | | ########### "???? ? ??????????? | | ? #?### ""?"?BB????????????? | | ? ?##?## "?""?BB????????????? | | ? #####u "??????????????????? | | ?"?? ##### ####### ##########?#???#????????????? | | ?"?? ##?## #?#??##;####???##????##?????????????? | | """ #?### ##?########?####?#?#????????????????? | | ?" ?##?#= ####?##?###?##??#???????????????????? | | ??? ?##?#%=#??##?????##?###????????????????????? | | ? ?##?# #####?##??###?#?????????????????????? | | #########?# #?###?##???#???#????????????????????? | | #??#?#?#??# ######?#?????#?#????????????????????? | | ########### #####??#????#???????????????????????? | | ##?#?##?### ##?###??#####???????????????????????? | | ####?###### #?#?#???????????????????????????????? | | ??#?##?#### #? ?s???????????????????????????? | | ###??###### +??? s?s???????????????????????????? | | ########### # ????s?????????????????????????????? | | #??"???ss???????????????????????????? | | #???????????????????????????????????? | | ########### #???????????????????????????????????? | | ########## #???????????????????????????????????? | | ?# # #???????????????????????????????????? | | ?# + #???????????????????????????????????? | +----------------------------------------------------+ Best States ------------- Heat Dissipation 53 Coolant Potential 80 Energy Generation 31 Energy Capacity 645 Matter Stores 500 Matter Capacity 500 Sight Range 16 Robot Scan Range 16 Terrain Scan Range 30 Terrain Scan Density 1010 ECM Strength 3 Base Temperature (-) 100 Armor Coverage 450 Core Shielding 20 Power Shielding 33 Propulsion Shielding 66 Utility Shielding 33 Reclamation Efficiency 10 Evasion (%) 64 Targeting Accuracy 6 Recoil Reduction 4 Offensive Hacking 34 Defensive Hacking 10 Item Schematics ----------------- Hacking Suite | -8/Materials | Scanalyzed Lrg. Storage Unit | -8/Materials | Scanalyzed Imp. Flight Unit | -8/Materials | Scanalyzed Imp. VTOL Module | -8/Materials | Scanalyzed Adv. Sensor Array | -7/Factory | Scanalyzed Combat Drone Bay | -7/Data Miner | Free Lgt. Regenerative Plating | -7/Data Miner | Free Exp. Flexi-carbon Leg | -7/Data Miner | Free Exp. Cesium-ion Thruster | -7/Data Miner | Free Triangulator | -7/Data Miner | Free Exp. Terrain Scanner | -7/Data Miner | Free Exp. Targeting Computer | -7/Data Miner | Free Tactical Coordination Suite | -7/Data Miner | Free Exp. Transmission Jammer | -7/Data Miner | Free Cloaking Device | -7/Data Miner | Free Cld. VTOL Module | -6/Factory | Hacked Adv. Hacking Suite | -5/Factory | Hacked Exp. Terrain Scan Processor | -5/Factory | Hacked Exp. Signal Interpreter | -5/Factory | Scanalyzed Imp. Propulsion Shielding | -5/Factory | Scanalyzed Mic. Fission Core | -5/Factory | Scanalyzed Cld. Cesium-ion Thruster | -5/Factory | Hacked Robot Schematics ------------------ S-27 Virus | -7/Data Miner | Free G-50 Soldier | -7/Data Miner | Free G-67 Veteran | -7/Data Miner | Free X-72 Disruptor | -7/Data Miner | Free I-36 Angel | -7/Data Miner | Free Fabricated ------------ Imp. VTOL Module | x1 | -7/Factory Imp. VTOL Module | x1 | -7/Factory Hacking Suite | x1 | -6/Factory Hacking Suite | x1 | -6/Factory Adv. Hacking Suite | x1 | -5/Factory Adv. Hacking Suite | x1 | -5/Factory Adv. Hacking Suite | x1 | -5/Factory Exp. Terrain Scanner | x1 | -5/Factory Exp. Terrain Scan Processor | x1 | -5/Factory Cld. Cesium-ion Thruster | x1 | -5/Factory Cld. Cesium-ion Thruster | x1 | -3/Research Cld. Cesium-ion Thruster | x1 | -3/Research Alien Tech Used ----------------- Core Expander Achievements -------------- Grand Amoeba Challenges ------------ Devolution Game ------ Seed ShadeLinkedMantle Manual? 0 Play Time 03:20:33 Cumulative 436.8 hours Start 2020.01.04 @ 09:56:18 End 2020.01.06 @ 19:33:15 Sessions 11 Manual Loads 0 Difficulty Rogue Special Mode None Game No. 117 Rogue 117 Adventurer 0 Explorer 0 Win Type 0 Total 34 Types 19/3/5/2/1/1/3 Lore% 95 Gallery% 97 Achievement% 89 Wizard Run 0 Options --------- ASCII 1 Keyboard 1 Movement Vi Keybinds 0 Fullscreen 1 Font 12/Smallcaps Map View 83x54 Tactical HUD 1 Map Filters NONE Filters NONE Steam 0 RUN: 00f116da-896d-4cb7-aced-f8f111383812